[Event "*** Titled Tuesday Blitz"]
[Site "Chess.com"]
[Date "2019.10.01"]
[Round "1"]
[White "Marreuh"]
[Black "vovachesss"]
[Result "0-1"]
[WhiteElo "2105"]
[BlackElo "2540"]
[TimeControl "180+2"]
[EndTime "13:02:41 PDT"]
[Termination "vovachesss won by resignation"]

1. e4 {[%clk 0:02:47.4]} 1... e5 {[%clk 0:02:59.3]} 2. Nf3 {[%clk 0:02:47.7]}
2... d5 {[%clk 0:03:00.7]} 3. Nxe5 {[%clk 0:02:45.6]} 3... Bd6 {[%clk
0:03:01.6]} 4. d4 {[%clk 0:02:43.5]} 4... dxe4 {[%clk 0:03:01.5]} 5. Bc4 {[%clk
0:02:43.7]} 5... Bxe5 {[%clk 0:03:02.8]} 6. dxe5 {[%clk 0:02:42.6]} 6... Qxd1+
{[%clk 0:03:04.7]} 7. Kxd1 {[%clk 0:02:43.8]} 7... Nc6 {[%clk 0:03:06.1]} 8. Bf4
{[%clk 0:02:42.8]} 8... Bg4+ {[%clk 0:03:07]} 9. Kc1 {[%clk 0:02:27.4]} 9...
Nge7 {[%clk 0:02:59.4]} 10. Re1 {[%clk 0:02:14.5]} 10... Ng6 {[%clk 0:02:56.3]}
11. Rxe4 {[%clk 0:02:15.5]} 11... Bf5 {[%clk 0:02:55.4]} 12. Re3 {[%clk
0:02:04.2]} 12... Nxf4 {[%clk 0:02:56.2]} 13. Rf3 {[%clk 0:02:05.7]} 13... g5
{[%clk 0:02:44.8]} 14. g3 {[%clk 0:02:06.8]} 14... Bg4 {[%clk 0:02:45.8]} 15.
Rb3 {[%clk 0:02:02.5]} 15... Ng6 {[%clk 0:02:40.8]} 16. Rxb7 {[%clk 0:02:02.7]}
16... O-O-O {[%clk 0:02:40.3]} 0-1

[Event "*** Titled Tuesday Blitz"]
[Site "Chess.com"]
[Date "2019.10.01"]
[Round "1"]
[White "Tolya2"]
[Black "KhalilMousavi77"]
[Result "0-1"]
[WhiteElo "2418"]
[BlackElo "2814"]
[TimeControl "180+2"]
[EndTime "13:03:36 PDT"]
[Termination "KhalilMousavi77 won by resignation"]

1. Nf3 {[%clk 0:03:00.4]} 1... Nf6 {[%clk 0:03:00]} 2. d4 {[%clk 0:03:00.1]}
2... d5 {[%clk 0:03:00.7]} 3. c4 {[%clk 0:03:00.2]} 3... e6 {[%clk 0:03:01.6]}
4. g3 {[%clk 0:02:59.7]} 4... Be7 {[%clk 0:03:01.7]} 5. Bg2 {[%clk 0:03:00.6]}
5... O-O {[%clk 0:03:02.8]} 6. O-O {[%clk 0:03:01.4]} 6... dxc4 {[%clk
0:03:04.4]} 7. Qc2 {[%clk 0:03:02.4]} 7... b5 {[%clk 0:03:05.4]} 8. a4 {[%clk
0:02:59.8]} 8... b4 {[%clk 0:03:05.7]} 9. Qxc4 {[%clk 0:02:59.5]} 9... Bb7
{[%clk 0:03:05]} 10. Bg5 {[%clk 0:02:57.1]} 10... Nbd7 {[%clk 0:03:05.7]} 11.
Nbd2 {[%clk 0:02:56.3]} 11... Rc8 {[%clk 0:03:01.8]} 12. Rfc1 {[%clk 0:02:54.8]}
12... c5 {[%clk 0:03:02.6]} 13. dxc5 {[%clk 0:02:54.7]} 13... Rxc5 {[%clk
0:03:02.1]} 14. Qb3 {[%clk 0:02:52.9]} 14... h6 {[%clk 0:02:55]} 15. Bxf6 {[%clk
0:02:52.9]} 15... Nxf6 {[%clk 0:02:56.9]} 16. Rxc5 {[%clk 0:02:51.6]} 16... Bxc5
{[%clk 0:02:58.8]} 17. Rd1 {[%clk 0:02:50.7]} 17... Qb6 {[%clk 0:02:53.9]} 18.
e3 {[%clk 0:02:50.1]} 18... Rd8 {[%clk 0:02:50.9]} 19. Nc4 {[%clk 0:02:49]}
19... Rxd1+ {[%clk 0:02:51.7]} 20. Qxd1 {[%clk 0:02:49.3]} 20... Qc7 {[%clk
0:02:53.4]} 21. b3 {[%clk 0:02:48.2]} 21... Nd5 {[%clk 0:02:48.7]} 22. Nfe5
{[%clk 0:02:45]} 22... Nc3 {[%clk 0:02:48.9]} 23. Qd3 {[%clk 0:02:45.1]} 23...
Bd5 {[%clk 0:02:48.9]} 24. e4 {[%clk 0:02:32.8]} 24... Bb7 {[%clk 0:02:49.5]}
25. Ng4 {[%clk 0:02:26]} 25... Ba6 {[%clk 0:02:39.9]} 26. Nge3 {[%clk
0:02:25.5]} 26... Bxe3 {[%clk 0:02:37]} 27. Qxe3 {[%clk 0:02:23.5]} 27... Bxc4
{[%clk 0:02:34.2]} 28. bxc4 {[%clk 0:02:24.4]} 28... Qxc4 {[%clk 0:02:35.2]} 29.
Qxa7 {[%clk 0:02:24]} 29... Ne2+ {[%clk 0:02:36.2]} 30. Kf1 {[%clk 0:02:20.8]}
30... Nxg3+ {[%clk 0:02:37.3]} 31. Kg1 {[%clk 0:02:21.8]} 31... Qc1+ {[%clk
0:02:37.9]} 0-1

[Event "*** Titled Tuesday Blitz"]
[Site "Chess.com"]
[Date "2019.10.01"]
[Round "1"]
[White "kingofthenil"]
[Black "brendan174"]
[Result "1-0"]
[WhiteElo "2537"]
[BlackElo "2105"]
[TimeControl "180+2"]
[EndTime "13:03:46 PDT"]
[Termination "kingofthenil won by resignation"]

1. d4 {[%clk 0:03:01.9]} 1... Nf6 {[%clk 0:03:00.7]} 2. c4 {[%clk 0:03:02.9]}
2... e6 {[%clk 0:03:01.9]} 3. Nc3 {[%clk 0:03:03.5]} 3... Bb4 {[%clk 0:03:02.6]}
4. a3 {[%clk 0:03:04.8]} 4... Bxc3+ {[%clk 0:03:01.6]} 5. bxc3 {[%clk
0:03:06.7]} 5... O-O {[%clk 0:02:59.4]} 6. f3 {[%clk 0:03:07]} 6... d5 {[%clk
0:03:00]} 7. cxd5 {[%clk 0:03:08.9]} 7... exd5 {[%clk 0:02:55.3]} 8. e3 {[%clk
0:03:09.6]} 8... c6 {[%clk 0:02:46.5]} 9. Bd3 {[%clk 0:03:08]} 9... Re8 {[%clk
0:02:36.6]} 10. Ne2 {[%clk 0:03:05.2]} 10... Nbd7 {[%clk 0:02:36.7]} 11. O-O
{[%clk 0:03:02.9]} 11... Nf8 {[%clk 0:02:36.5]} 12. Ng3 {[%clk 0:03:02.4]} 12...
Ng6 {[%clk 0:02:32.5]} 13. e4 {[%clk 0:03:02]} 13... dxe4 {[%clk 0:02:31.7]} 14.
fxe4 {[%clk 0:03:03.9]} 14... Bg4 {[%clk 0:02:27.5]} 15. Qc2 {[%clk 0:03:02.3]}
15... Be6 {[%clk 0:02:02.3]} 16. Bg5 {[%clk 0:03:01]} 1-0

[Event "*** Titled Tuesday Blitz"]
[Site "Chess.com"]
[Date "2019.10.01"]
[Round "1"]
[White "CastleOasisChess"]
[Black "MoonlighT89"]
[Result "0-1"]
[WhiteElo "1999"]
[BlackElo "2516"]
[TimeControl "180+2"]
[EndTime "13:04:01 PDT"]
[Termination "MoonlighT89 won by resignation"]

1. d4 {[%clk 0:03:01.9]} 1... Nf6 {[%clk 0:03:00.8]} 2. e3 {[%clk 0:03:02.3]}
2... c5 {[%clk 0:03:00.7]} 3. Bd3 {[%clk 0:03:02.9]} 3... g6 {[%clk 0:03:01.5]}
4. c3 {[%clk 0:03:03.9]} 4... b6 {[%clk 0:03:00]} 5. f4 {[%clk 0:03:03.8]} 5...
Ba6 {[%clk 0:02:56.8]} 6. Qe2 {[%clk 0:03:00.2]} 6... Bxd3 {[%clk 0:02:55.2]} 7.
Qxd3 {[%clk 0:03:02.1]} 7... Bg7 {[%clk 0:02:55.2]} 8. Nd2 {[%clk 0:02:57.6]}
8... O-O {[%clk 0:02:56]} 9. Ngf3 {[%clk 0:02:58.6]} 9... d6 {[%clk 0:02:47.9]}
10. O-O {[%clk 0:02:59.5]} 10... Nc6 {[%clk 0:02:48.3]} 11. a3 {[%clk 0:02:54]}
11... Rc8 {[%clk 0:02:47.6]} 12. Kh1 {[%clk 0:02:51.9]} 12... Qc7 {[%clk
0:02:41.9]} 13. d5 {[%clk 0:02:39.6]} 13... Na5 {[%clk 0:02:41.5]} 14. e4 {[%clk
0:02:32.9]} 14... e6 {[%clk 0:02:40.6]} 15. c4 {[%clk 0:02:28.6]} 15... exd5
{[%clk 0:02:39.8]} 16. exd5 {[%clk 0:02:28.5]} 16... Rfe8 {[%clk 0:02:39.9]} 17.
h3 {[%clk 0:02:16.8]} 17... Nh5 {[%clk 0:02:37.3]} 18. Kh2 {[%clk 0:02:15]}
18... Nxf4 {[%clk 0:02:36.4]} 19. Qc2 {[%clk 0:02:10]} 19... b5 {[%clk
0:02:21.5]} 20. Rb1 {[%clk 0:01:58.5]} 20... Re2 {[%clk 0:02:19.6]} 0-1

[Event "*** Titled Tuesday Blitz"]
[Site "Chess.com"]
[Date "2019.10.01"]
[Round "1"]
[White "H3nriqueTV"]
[Black "TST2014"]
[Result "0-1"]
[WhiteElo "2138"]
[BlackElo "2554"]
[TimeControl "180+2"]
[EndTime "13:04:12 PDT"]
[Termination "TST2014 won by resignation"]

1. d4 {[%clk 0:03:01.9]} 1... Nf6 {[%clk 0:03:00.5]} 2. Bf4 {[%clk 0:02:56.4]}
2... d6 {[%clk 0:02:59.5]} 3. e3 {[%clk 0:02:55.4]} 3... Nbd7 {[%clk 0:02:59.2]}
4. Nf3 {[%clk 0:02:56.2]} 4... Nh5 {[%clk 0:02:59.7]} 5. Bg3 {[%clk 0:02:56.8]}
5... g6 {[%clk 0:02:59.4]} 6. Bd3 {[%clk 0:02:56.7]} 6... Bg7 {[%clk 0:02:59.9]}
7. Nbd2 {[%clk 0:02:55.7]} 7... Nxg3 {[%clk 0:02:59.8]} 8. hxg3 {[%clk
0:02:56.7]} 8... O-O {[%clk 0:03:00.4]} 9. c3 {[%clk 0:02:57.3]} 9... e5 {[%clk
0:02:56.8]} 10. O-O {[%clk 0:02:57.4]} 10... Kh8 {[%clk 0:02:52.5]} 11. e4
{[%clk 0:02:57.2]} 11... f5 {[%clk 0:02:49.9]} 12. Qc2 {[%clk 0:02:53]} 12...
fxe4 {[%clk 0:02:48.3]} 13. Bxe4 {[%clk 0:02:52.8]} 13... c6 {[%clk 0:02:40.8]}
14. Rad1 {[%clk 0:02:51.5]} 14... d5 {[%clk 0:02:41.3]} 15. Bxg6 {[%clk
0:02:43.6]} 15... hxg6 {[%clk 0:02:41.9]} 16. Qxg6 {[%clk 0:02:45.5]} 16... Qf6
{[%clk 0:02:40.2]} 17. Qh5+ {[%clk 0:02:46.4]} 17... Qh6 {[%clk 0:02:40.7]} 18.
Qg4 {[%clk 0:02:46.9]} 18... Nf6 {[%clk 0:02:40.2]} 19. Qh4 {[%clk 0:02:45.3]}
19... e4 {[%clk 0:02:30.6]} 20. Ne5 {[%clk 0:02:44]} 20... Kg8 {[%clk
0:02:21.5]} 21. c4 {[%clk 0:02:29.1]} 21... Ng4 {[%clk 0:02:19.3]} 22. Qxh6
{[%clk 0:02:06.5]} 22... Bxh6 {[%clk 0:02:16]} 23. Ng6 {[%clk 0:02:08.4]} 23...
Re8 {[%clk 0:02:09.3]} 24. cxd5 {[%clk 0:02:08.8]} 24... cxd5 {[%clk 0:02:09.2]}
25. Rfe1 {[%clk 0:02:10.2]} 25... e3 {[%clk 0:02:06.5]} 26. f3 {[%clk
0:02:02.8]} 26... Nf2 {[%clk 0:02:04.7]} 27. Rc1 {[%clk 0:01:59.7]} 27... Bf5
{[%clk 0:02:05]} 0-1

[Event "*** Titled Tuesday Blitz"]
[Site "Chess.com"]
[Date "2019.10.01"]
[Round "1"]
[White "Godzillator"]
[Black "kuli4ik"]
[Result "0-1"]
[WhiteElo "2407"]
[BlackElo "2777"]
[TimeControl "180+2"]
[EndTime "13:04:23 PDT"]
[Termination "kuli4ik won by resignation"]

1. d4 {[%clk 0:03:01.9]} 1... g6 {[%clk 0:02:59.2]} 2. c4 {[%clk 0:03:03]} 2...
Bg7 {[%clk 0:02:59.5]} 3. e4 {[%clk 0:03:04.3]} 3... d6 {[%clk 0:02:58.5]} 4.
Nc3 {[%clk 0:03:04.5]} 4... e5 {[%clk 0:02:58.3]} 5. d5 {[%clk 0:03:04.5]} 5...
a5 {[%clk 0:02:58.2]} 6. Bd3 {[%clk 0:03:04.8]} 6... Na6 {[%clk 0:02:58.5]} 7.
Nge2 {[%clk 0:03:04.7]} 7... Bh6 {[%clk 0:02:58.4]} 8. O-O {[%clk 0:02:56]} 8...
Bxc1 {[%clk 0:02:57.9]} 9. Qxc1 {[%clk 0:02:57.2]} 9... Nf6 {[%clk 0:02:58.6]}
10. f4 {[%clk 0:02:56.4]} 10... Nd7 {[%clk 0:02:59]} 11. f5 {[%clk 0:02:56.7]}
11... Ndc5 {[%clk 0:02:43.2]} 12. Bb1 {[%clk 0:02:57.3]} 12... gxf5 {[%clk
0:02:42.1]} 13. Qh6 {[%clk 0:02:51.3]} 13... f4 {[%clk 0:02:37.2]} 14. g3 {[%clk
0:02:51.9]} 14... Qe7 {[%clk 0:02:10.8]} 15. gxf4 {[%clk 0:02:52.3]} 15... Rg8+
{[%clk 0:02:06]} 16. Kh1 {[%clk 0:02:52.2]} 16... Bg4 {[%clk 0:02:05.5]} 17. Ng3
{[%clk 0:02:41.9]} 17... O-O-O {[%clk 0:02:02]} 18. fxe5 {[%clk 0:02:37.4]}
18... Qxe5 {[%clk 0:02:02]} 19. Rxf7 {[%clk 0:02:33.9]} 19... Kb8 {[%clk
0:01:55.7]} 20. Qf4 {[%clk 0:02:20.5]} 20... Qd4 {[%clk 0:01:51.7]} 21. Bc2
{[%clk 0:02:17.4]} 21... Nb4 {[%clk 0:01:49.7]} 22. Rd1 {[%clk 0:02:17.5]} 22...
Bxd1 {[%clk 0:01:48.4]} 23. Bxd1 {[%clk 0:02:17]} 23... Nbd3 {[%clk 0:01:46.7]}
24. Kg2 {[%clk 0:01:47.5]} 24... Nxf4+ {[%clk 0:01:46]} 0-1

[Event "*** Titled Tuesday Blitz"]
[Site "Chess.com"]
[Date "2019.10.01"]
[Round "1"]
[White "morphinho22"]
[Black "nubair1198"]
[Result "0-1"]
[WhiteElo "2360"]
[BlackElo "2707"]
[TimeControl "180+2"]
[EndTime "13:04:29 PDT"]
[Termination "nubair1198 won by resignation"]

1. Nf3 {[%clk 0:03:01.9]} 1... Nf6 {[%clk 0:03:00.3]} 2. e3 {[%clk 0:03:02.7]}
2... g6 {[%clk 0:03:00.8]} 3. c4 {[%clk 0:03:03.8]} 3... Bg7 {[%clk 0:03:02.3]}
4. Nc3 {[%clk 0:03:05.2]} 4... O-O {[%clk 0:03:03.8]} 5. Be2 {[%clk 0:03:03.1]}
5... d6 {[%clk 0:02:58.6]} 6. d4 {[%clk 0:03:03.3]} 6... Nbd7 {[%clk 0:02:58.9]}
7. O-O {[%clk 0:03:01.4]} 7... e5 {[%clk 0:03:00.5]} 8. dxe5 {[%clk 0:02:57.5]}
8... dxe5 {[%clk 0:03:02.4]} 9. b3 {[%clk 0:02:57.1]} 9... Qe7 {[%clk
0:03:02.5]} 10. Nd5 {[%clk 0:02:51.2]} 10... Nxd5 {[%clk 0:03:03.1]} 11. cxd5
{[%clk 0:02:53.1]} 11... e4 {[%clk 0:03:03.6]} 12. Nd4 {[%clk 0:02:54]} 12...
Nb6 {[%clk 0:03:05]} 13. a4 {[%clk 0:02:40.2]} 13... Nxd5 {[%clk 0:03:01.9]} 14.
Ba3 {[%clk 0:02:40.3]} 14... c5 {[%clk 0:03:03.3]} 15. Nb5 {[%clk 0:02:37.9]}
15... Rd8 {[%clk 0:03:01.5]} 16. Qc2 {[%clk 0:02:22.5]} 16... b6 {[%clk
0:02:56.1]} 17. Rad1 {[%clk 0:02:20]} 17... a6 {[%clk 0:02:53.3]} 18. Bc4 {[%clk
0:02:16.4]} 18... Bb7 {[%clk 0:02:52.8]} 19. Bxd5 {[%clk 0:02:11.6]} 19... Bxd5
{[%clk 0:02:48.6]} 20. Nc3 {[%clk 0:02:12.3]} 20... Bc6 {[%clk 0:02:49.9]} 21.
Ne2 {[%clk 0:01:49.6]} 21... Rd7 {[%clk 0:02:31.8]} 22. Rxd7 {[%clk 0:01:46.3]}
22... Bxd7 {[%clk 0:02:33.7]} 23. a5 {[%clk 0:01:47]} 23... bxa5 {[%clk
0:02:28.5]} 24. Bxc5 {[%clk 0:01:47.4]} 24... Qg5 {[%clk 0:02:28]} 25. Qxe4
{[%clk 0:01:35.5]} 25... Re8 {[%clk 0:02:27.5]} 26. Qb7 {[%clk 0:01:21.3]} 26...
Bb5 {[%clk 0:02:28.7]} 0-1

[Event "*** Titled Tuesday Blitz"]
[Site "Chess.com"]
[Date "2019.10.01"]
[Round "1"]
[White "MathiasWomacka"]
[Black "ChessQueen"]
[Result "1-0"]
[WhiteElo "2271"]
[BlackElo "2604"]
[TimeControl "180+2"]
[EndTime "13:04:38 PDT"]
[Termination "MathiasWomacka won by resignation"]

1. e4 {[%clk 0:02:56.2]} 1... c6 {[%clk 0:02:59.4]} 2. d4 {[%clk 0:02:56.3]}
2... d5 {[%clk 0:02:59.1]} 3. Nd2 {[%clk 0:02:57.6]} 3... dxe4 {[%clk
0:02:59.2]} 4. Nxe4 {[%clk 0:02:58.7]} 4... Bf5 {[%clk 0:02:59.8]} 5. Ng3 {[%clk
0:02:59.7]} 5... Bg6 {[%clk 0:03:00.8]} 6. h4 {[%clk 0:03:01]} 6... h6 {[%clk
0:03:00.8]} 7. Nf3 {[%clk 0:03:02.4]} 7... Nd7 {[%clk 0:03:01]} 8. h5 {[%clk
0:03:01.7]} 8... Bh7 {[%clk 0:03:01.4]} 9. Bd3 {[%clk 0:03:03.2]} 9... Bxd3
{[%clk 0:02:59.4]} 10. Qxd3 {[%clk 0:03:05.1]} 10... Qc7 {[%clk 0:03:00.6]} 11.
Bd2 {[%clk 0:03:03.9]} 11... O-O-O {[%clk 0:03:00.3]} 12. O-O-O {[%clk
0:03:04.6]} 12... Ngf6 {[%clk 0:02:56.9]} 13. Ne4 {[%clk 0:03:05.4]} 13... e6
{[%clk 0:02:35.6]} 14. g3 {[%clk 0:03:05]} 14... Nc5 {[%clk 0:02:25]} 15. Nxc5
{[%clk 0:03:03.2]} 15... Bxc5 {[%clk 0:02:25.1]} 16. c4 {[%clk 0:03:01.2]} 16...
e5 {[%clk 0:02:12]} 17. Qf5+ {[%clk 0:02:56.3]} 17... Qd7 {[%clk 0:01:56.4]} 18.
Qxd7+ {[%clk 0:02:56.5]} 18... Nxd7 {[%clk 0:01:58.3]} 19. dxc5 {[%clk
0:02:57.9]} 19... e4 {[%clk 0:01:59.7]} 20. Nh4 {[%clk 0:02:53]} 20... Nxc5
{[%clk 0:01:59.2]} 21. Be3 {[%clk 0:02:47.9]} 21... Nd3+ {[%clk 0:01:57.3]} 22.
Kc2 {[%clk 0:02:49.4]} 22... Ne5 {[%clk 0:01:54.1]} 23. b3 {[%clk 0:02:40.1]}
23... Ng4 {[%clk 0:01:48.9]} 24. Bxa7 {[%clk 0:02:36.3]} 24... Kc7 {[%clk
0:01:35.1]} 25. Bd4 {[%clk 0:02:29.4]} 25... f6 {[%clk 0:01:27]} 26. Nf5 {[%clk
0:02:20.8]} 26... Rhg8 {[%clk 0:01:16.1]} 27. Rh4 {[%clk 0:02:17.1]} 1-0

[Event "*** Titled Tuesday Blitz"]
[Site "Chess.com"]
[Date "2019.10.01"]
[Round "1"]
[White "misha_melnichuk"]
[Black "kinga2008"]
[Result "1-0"]
[WhiteElo "2515"]
[BlackElo "1963"]
[TimeControl "180+2"]
[EndTime "13:04:38 PDT"]
[Termination "misha_melnichuk won by resignation"]

1. Nf3 {[%clk 0:02:58.7]} 1... c5 {[%clk 0:01:02.3]} 2. g3 {[%clk 0:02:58.1]}
2... d5 {[%clk 0:01:02.5]} 3. Bg2 {[%clk 0:02:59.4]} 3... Nc6 {[%clk 0:01:04.1]}
4. O-O {[%clk 0:03:00.9]} 4... e5 {[%clk 0:00:57.9]} 5. c4 {[%clk 0:03:01.5]}
5... d4 {[%clk 0:00:57.6]} 6. e3 {[%clk 0:03:02.3]} 6... dxe3 {[%clk 0:00:47.7]}
7. fxe3 {[%clk 0:02:59.3]} 7... Nf6 {[%clk 0:00:45.1]} 8. Nc3 {[%clk 0:02:59.5]}
8... Bg4 {[%clk 0:00:34.9]} 9. h3 {[%clk 0:02:58.3]} 9... Bh5 {[%clk 0:00:24.2]}
10. Qb3 {[%clk 0:02:58.1]} 10... Qc8 {[%clk 0:00:17.7]} 11. Nd5 {[%clk
0:02:40.1]} 11... Nxd5 {[%clk 0:00:18.2]} 12. cxd5 {[%clk 0:02:40.5]} 12... Bxf3
{[%clk 0:00:18.6]} 13. Rxf3 {[%clk 0:02:34.8]} 13... e4 {[%clk 0:00:16]} 14.
dxc6 {[%clk 0:02:27.6]} 14... exf3 {[%clk 0:00:16.5]} 15. cxb7 {[%clk
0:02:28.1]} 15... c4 {[%clk 0:00:11.6]} 1-0

[Event "*** Titled Tuesday Blitz"]
[Site "Chess.com"]
[Date "2019.10.01"]
[Round "1"]
[White "IMDT02"]
[Black "mishanick"]
[Result "0-1"]
[WhiteElo "2489"]
[BlackElo "3003"]
[TimeControl "180+2"]
[EndTime "13:04:40 PDT"]
[Termination "mishanick won by resignation"]

1. d4 {[%clk 0:03:00]} 1... Nf6 {[%clk 0:02:48.9]} 2. c4 {[%clk 0:03:01]} 2...
e6 {[%clk 0:02:47.6]} 3. Nc3 {[%clk 0:03:02.2]} 3... Bb4 {[%clk 0:02:47.5]} 4.
e3 {[%clk 0:03:03.7]} 4... O-O {[%clk 0:02:47.5]} 5. Ne2 {[%clk 0:03:04.4]} 5...
d5 {[%clk 0:02:48.3]} 6. a3 {[%clk 0:03:04]} 6... Be7 {[%clk 0:02:49.7]} 7. Ng3
{[%clk 0:03:03.1]} 7... Nbd7 {[%clk 0:02:50]} 8. cxd5 {[%clk 0:03:01.9]} 8...
exd5 {[%clk 0:02:48.7]} 9. Nf5 {[%clk 0:03:00.2]} 9... Re8 {[%clk 0:02:47.2]}
10. Nxe7+ {[%clk 0:02:59.6]} 10... Qxe7 {[%clk 0:02:48.2]} 11. Be2 {[%clk
0:03:00.9]} 11... Nf8 {[%clk 0:02:47.9]} 12. O-O {[%clk 0:03:01.3]} 12... Ng6
{[%clk 0:02:49]} 13. b4 {[%clk 0:02:56.8]} 13... a5 {[%clk 0:02:45]} 14. bxa5
{[%clk 0:02:53.8]} 14... Rxa5 {[%clk 0:02:44.5]} 15. a4 {[%clk 0:02:55]} 15...
c6 {[%clk 0:02:42.3]} 16. Ba3 {[%clk 0:02:55.4]} 16... Qc7 {[%clk 0:02:42.6]}
17. Bb4 {[%clk 0:02:54.1]} 17... Ra8 {[%clk 0:02:40.7]} 18. Rc1 {[%clk
0:02:54.3]} 18... Bf5 {[%clk 0:02:31.8]} 19. Qb3 {[%clk 0:02:53.5]} 19... Qb8
{[%clk 0:02:26.9]} 20. a5 {[%clk 0:02:52.7]} 20... Bg4 {[%clk 0:02:27.2]} 21.
Bd3 {[%clk 0:02:49.6]} 21... Nh4 {[%clk 0:02:27.7]} 22. Qa3 {[%clk 0:01:49.8]}
22... Bf3 {[%clk 0:01:56.4]} 23. Bd6 {[%clk 0:01:44.7]} 23... Qc8 {[%clk
0:01:56.2]} 24. gxf3 {[%clk 0:01:39.3]} 24... Qh3 {[%clk 0:01:55.1]} 0-1

[Event "*** Titled Tuesday Blitz"]
[Site "Chess.com"]
[Date "2019.10.01"]
[Round "1"]
[White "akretchetov"]
[Black "johnathan113"]
[Result "0-1"]
[WhiteElo "2355"]
[BlackElo "2704"]
[TimeControl "180+2"]
[EndTime "13:04:48 PDT"]
[Termination "johnathan113 won by resignation"]

1. d4 {[%clk 0:03:00.9]} 1... Nf6 {[%clk 0:02:59.5]} 2. Bf4 {[%clk 0:03:01.1]}
2... g6 {[%clk 0:02:59.7]} 3. Nc3 {[%clk 0:03:00.8]} 3... Bg7 {[%clk 0:03:00.8]}
4. e4 {[%clk 0:03:00.6]} 4... d5 {[%clk 0:03:02.1]} 5. e5 {[%clk 0:02:53]} 5...
Ne4 {[%clk 0:03:03]} 6. Nxe4 {[%clk 0:02:53.7]} 6... dxe4 {[%clk 0:03:04.2]} 7.
Qd2 {[%clk 0:02:54.4]} 7... c5 {[%clk 0:03:03.2]} 8. c3 {[%clk 0:02:45.3]} 8...
O-O {[%clk 0:02:58.4]} 9. Bc4 {[%clk 0:02:23.1]} 9... cxd4 {[%clk 0:02:55.2]}
10. cxd4 {[%clk 0:02:23.5]} 10... Nc6 {[%clk 0:02:55.2]} 11. Ne2 {[%clk
0:02:24.2]} 11... Bg4 {[%clk 0:02:55.4]} 12. Be3 {[%clk 0:02:18.9]} 12... Na5
{[%clk 0:02:45.8]} 13. Bb5 {[%clk 0:01:26.8]} 13... a6 {[%clk 0:02:44.8]} 14. h3
{[%clk 0:01:22.2]} 14... axb5 {[%clk 0:02:37.2]} 15. hxg4 {[%clk 0:01:22.1]}
15... Nb3 {[%clk 0:02:38.6]} 16. axb3 {[%clk 0:01:16.3]} 16... Rxa1+ {[%clk
0:02:38.8]} 17. Nc1 {[%clk 0:01:16.8]} 17... Qc7 {[%clk 0:02:35.8]} 18. O-O
{[%clk 0:01:13.5]} 18... Rc8 {[%clk 0:02:31.9]} 19. Qe2 {[%clk 0:01:13.6]} 19...
Qc6 {[%clk 0:02:25.2]} 20. Qd2 {[%clk 0:01:12.9]} 20... Qc2 {[%clk 0:02:22.6]}
21. Qb4 {[%clk 0:01:13.5]} 21... Qxb2 {[%clk 0:02:23.7]} 22. Qxb5 {[%clk
0:01:00.9]} 22... Raxc1 {[%clk 0:02:24.2]} 23. Bxc1 {[%clk 0:00:58.2]} 23...
Rxc1 {[%clk 0:02:23.6]} 24. Qxb7 {[%clk 0:00:55.7]} 24... Rxf1+ {[%clk
0:02:22.4]} 25. Kxf1 {[%clk 0:00:56.4]} 25... Qxd4 {[%clk 0:02:22.1]} 0-1

[Event "*** Titled Tuesday Blitz"]
[Site "Chess.com"]
[Date "2019.10.01"]
[Round "1"]
[White "moro182"]
[Black "ZeroRealtorFade"]
[Result "1-0"]
[WhiteElo "2706"]
[BlackElo "2359"]
[TimeControl "180+2"]
[EndTime "13:04:50 PDT"]
[Termination "moro182 won by resignation"]

1. d4 {[%clk 0:03:01.9]} 1... Nf6 {[%clk 0:03:00.6]} 2. c4 {[%clk 0:03:03.1]}
2... c5 {[%clk 0:03:01.4]} 3. Nf3 {[%clk 0:03:03.3]} 3... g6 {[%clk 0:03:00.7]}
4. Nc3 {[%clk 0:03:03.9]} 4... Bg7 {[%clk 0:02:58.3]} 5. g3 {[%clk 0:03:02]}
5... O-O {[%clk 0:02:58.3]} 6. Bg2 {[%clk 0:03:03.2]} 6... d5 {[%clk 0:02:36.1]}
7. dxc5 {[%clk 0:02:34.3]} 7... dxc4 {[%clk 0:02:30.4]} 8. Qa4 {[%clk
0:02:30.7]} 8... Qc7 {[%clk 0:02:09.9]} 9. Qxc4 {[%clk 0:02:27.8]} 9... Be6
{[%clk 0:02:01.8]} 10. Qh4 {[%clk 0:02:28.2]} 10... Qxc5 {[%clk 0:01:42.2]} 11.
O-O {[%clk 0:02:13.5]} 11... Nc6 {[%clk 0:01:36]} 12. Ng5 {[%clk 0:02:13.8]}
12... Bc4 {[%clk 0:01:26.3]} 13. Nce4 {[%clk 0:02:09.9]} 1-0

[Event "*** Titled Tuesday Blitz"]
[Site "Chess.com"]
[Date "2019.10.01"]
[Round "1"]
[White "Dhaydon19"]
[Black "smshk35"]
[Result "1/2-1/2"]
[WhiteElo "2694"]
[BlackElo "2359"]
[TimeControl "180+2"]
[EndTime "13:04:56 PDT"]
[Termination "Game drawn by agreement"]

1. d4 {[%clk 0:03:01.8]} 1... Nf6 {[%clk 0:03:00.2]} 2. Nf3 {[%clk 0:03:01.9]}
2... g6 {[%clk 0:03:01]} 3. c4 {[%clk 0:03:03.3]} 3... Bg7 {[%clk 0:03:02]} 4.
Nc3 {[%clk 0:03:04.6]} 4... O-O {[%clk 0:03:02.9]} 5. g3 {[%clk 0:03:05.9]} 5...
d6 {[%clk 0:03:03.3]} 6. Bg2 {[%clk 0:03:06.7]} 6... c6 {[%clk 0:03:04.5]} 7.
O-O {[%clk 0:03:06.5]} 7... Bf5 {[%clk 0:03:05.4]} 8. Re1 {[%clk 0:03:07.1]}
8... Ne4 {[%clk 0:03:04.6]} 9. Nh4 {[%clk 0:03:08.2]} 9... Nxc3 {[%clk
0:03:00.7]} 10. bxc3 {[%clk 0:03:10.1]} 10... Bc8 {[%clk 0:02:59.1]} 11. e4
{[%clk 0:03:10.1]} 11... Na6 {[%clk 0:02:46]} 12. Be3 {[%clk 0:03:10.1]} 12...
Qa5 {[%clk 0:02:44.2]} 13. Qd3 {[%clk 0:03:10.3]} 13... Qh5 {[%clk 0:02:25.9]}
14. f4 {[%clk 0:02:57.9]} 14... Qa5 {[%clk 0:02:11.1]} 15. f5 {[%clk 0:02:45.3]}
15... c5 {[%clk 0:02:06.2]} 16. Rf1 {[%clk 0:02:39.1]} 16... Qa3 {[%clk
0:01:57.3]} 17. Qd2 {[%clk 0:02:33.4]} 17... Qa4 {[%clk 0:01:35.6]} 18. Bh6
{[%clk 0:02:27.4]} 18... Qxc4 {[%clk 0:01:30.8]} 19. Bxg7 {[%clk 0:02:28.5]}
19... Kxg7 {[%clk 0:01:31.5]} 20. fxg6 {[%clk 0:02:30.2]} 20... hxg6 {[%clk
0:01:29.4]} 21. Qg5 {[%clk 0:02:26.5]} 21... cxd4 {[%clk 0:01:21.3]} 22. Nf5+
{[%clk 0:02:12.3]} 22... Bxf5 {[%clk 0:01:21]} 23. exf5 {[%clk 0:02:14.2]} 23...
dxc3 {[%clk 0:01:13.6]} 24. fxg6 {[%clk 0:02:11.9]} 24... Qc5+ {[%clk
0:01:14.1]} 25. Qxc5 {[%clk 0:02:12.5]} 25... Nxc5 {[%clk 0:01:14.8]} 26. gxf7
{[%clk 0:02:14.3]} 26... Rxf7 {[%clk 0:01:15.1]} 27. Rfc1 {[%clk 0:02:15.9]}
1/2-1/2